fUST/lending_fUST_20251129
["ID","MTS","AMOUNT","RATE_DAILY","PERIOD"]
[395055506,1764382242226,-160.0,0.000138,2]
[395055507,1764382242235,-396.7820932,0.000138,2]
[395055508,1764382242244,-405.3311151,0.000138,2]
[395055509,1764382242253,-396.7820932,0.000138,2]
[395055510,1764382242262,-151.31654069,0.00013892,2]
[395055511,1764382242271,-666.0,0.00013892,2]
[395055512,1764382242280,-307.94562643,0.00013892,2]
[395055513,1764382242291,-195.65915844,0.00013971,2]
[395055514,1764382242300,-160.25997773,0.00013971,2]
[395055515,1764382242308,-500.0,0.00013971,2]
[395055516,1764382242317,-416.99638714,0.00013971,2]
[395055517,1764382242326,-500.0,0.00013972,2]
[395055518,1764382242335,-227.4589466,0.00013972,2]
[395055519,1764382242343,-517.35679695,0.00013972,2]
[395055520,1764382242352,-500.93894334,0.00013972,2]
[395055521,1764382242361,-500.0,0.00013972,2]
[395055522,1764382242370,-544.2,0.00013972,2]
[395055523,1764382242379,-500.0,0.00013972,2]
[395055524,1764382242387,-500.0,0.00013972,2]
[395055525,1764382242396,-409.39238623,0.00013972,2]
[395055526,1764382242405,-340.97024112,0.00013972,2]
[395055527,1764382242414,-500.0,0.00013972,2]
[395055528,1764382242423,-552.79,0.00013972,2]
[395055529,1764382242431,-500.0,0.00013972,2]
[395055530,1764382242441,-500.0,0.00013972,2]
[395055531,1764382242451,-500.0,0.00013972,2]
[395055532,1764382242459,-500.0,0.00013972,2]
[395055533,1764382242468,-500.0,0.00013972,2]
[395055534,1764382242477,-500.0,0.00013972,2]
[395055535,1764382242486,-500.0,0.00013972,2]
[395055536,1764382242495,-151.0,0.00013972,2]
[395055537,1764382242504,-152.007696,0.00013972,2]
[395055538,1764382242513,-500.0,0.00013972,2]
[395055539,1764382242522,-500.0,0.00013972,2]
[395055540,1764382242531,-500.0,0.00013972,2]
[395055542,1764382242539,-500.0,0.00013972,2]
[395055544,1764382242548,-500.0,0.00013972,2]
[395055546,1764382242557,-500.0,0.00013972,2]
[395055548,1764382242566,-500.0,0.00013972,2]
[395055550,1764382242575,-500.0,0.00013972,2]
[395055552,1764382242583,-500.0,0.00013972,2]
[395055554,1764382242593,-500.0,0.00013972,2]
[395055555,1764382242602,-500.0,0.00013972,2]
[395055557,1764382242611,-500.0,0.00013972,2]
[395055559,1764382242620,-500.0,0.00013972,2]
[395055561,1764382242629,-500.0,0.00013972,2]
[395055563,1764382242639,-500.0,0.00013972,2]
[395055565,1764382242648,-500.0,0.00013972,2]
[395055567,1764382242658,-621.32683792,0.00013972,2]
[395055569,1764382242666,-500.0,0.00013972,2]
[395055570,1764382242675,-870.66,0.00013972,2]
[395055572,1764382242684,-500.0,0.00013972,2]
[395055574,1764382242693,-500.0,0.00013972,2]
[395055576,1764382242704,-500.0,0.00013972,2]
[395055578,1764382242713,-500.0,0.00013972,2]
[395055580,1764382242722,-500.0,0.00013972,2]
[395055582,1764382242731,-500.0,0.00013972,2]
[395055584,1764382242741,-508.16,0.00013972,2]
[395055586,1764382242750,-500.0,0.00013972,2]
[395055588,1764382242759,-500.0,0.00013972,2]
[395055590,1764382242768,-1700.67,0.00013972,2]
[395055592,1764382242777,-500.0,0.00013972,2]
[395055594,1764382242787,-500.0,0.00013972,2]
[395055596,1764382242795,-500.0,0.00013972,2]
[395055598,1764382242805,-500.0,0.00013972,2]
[395055600,1764382242818,-500.0,0.00013972,2]
[395055602,1764382242827,-500.0,0.00013972,2]
[395055604,1764382242836,-1103.23,0.00013972,2]
[395055606,1764382242846,-1300.89,0.00013972,2]
[395055608,1764382242855,-384.70369607,0.00013972,2]
[395055610,1764382242865,-500.0,0.00013972,2]
[395055612,1764382242873,-502.86706117,0.00013972,2]
[395055614,1764382242883,-500.0,0.00013972,2]
[395055616,1764382242892,-503.01021045,0.00013972,2]
[395055618,1764382242902,-500.0,0.00013972,2]
[395055620,1764382242911,-500.0,0.00013972,2]
[395055622,1764382242921,-801.57,0.00013972,2]
[395055624,1764382242930,-500.0,0.00013972,2]
[395055626,1764382242939,-500.0,0.00013972,2]
[395055627,1764382242949,-500.0,0.00013972,2]
[395055629,1764382242959,-500.0,0.00013972,2]
[395055631,1764382242967,-500.0,0.00013972,2]
[395055633,1764382242976,-1101.92,0.00013972,2]
[395055635,1764382242986,-500.0,0.00013972,2]
[395055637,1764382242996,-500.0,0.00013972,2]
[395055639,1764382243005,-500.0,0.00013972,2]
[395055641,1764382243015,-995.32,0.00013972,2]
[395055643,1764382243024,-500.0,0.00013972,2]
[395055645,1764382243033,-500.0,0.00013972,2]
[395055647,1764382243043,-406.20361909,0.00013972,2]
[395055649,1764382243052,-500.0,0.00013972,2]
[395055651,1764382243061,-500.0,0.00013972,2]
[395055653,1764382243070,-500.0,0.00013972,2]
[395055655,1764382243080,-596.27,0.00013972,2]
[395055657,1764382243089,-592.82,0.00013972,2]
[395055659,1764382243098,-500.0,0.00013972,2]
[395055661,1764382243107,-500.0,0.00013972,2]
[395055663,1764382243117,-506.57,0.00013972,2]
[395055665,1764382243126,-500.0,0.00013972,2]
[395055667,1764382243135,-500.0,0.00013972,2]
[395055669,1764382243144,-500.0,0.00013972,2]
[395055671,1764382243152,-1062.63,0.00013972,2]
[395055673,1764382243161,-500.0,0.00013972,2]
[395055675,1764382243170,-500.0,0.00013972,2]
[395055677,1764382243179,-500.0,0.00013972,2]
[395055679,1764382243188,-500.0,0.00013972,2]
[395055680,1764382243200,-500.0,0.00013972,2]
[395055683,1764382243209,-500.0,0.00013972,2]
[395055685,1764382243218,-500.0,0.00013972,2]
[395055687,1764382243228,-628.42,0.00013972,2]
[395055689,1764382243237,-500.0,0.00013972,2]
[395055691,1764382243245,-501.8421416,0.00013972,2]
[395055694,1764382243254,-500.0,0.00013972,2]
[395055697,1764382243263,-502.1,0.00013972,2]
[395055699,1764382243273,-500.0,0.00013972,2]
[395055701,1764382243282,-500.0,0.00013972,2]
[395055703,1764382243291,-907.37,0.00013972,2]
[395055705,1764382243301,-500.0,0.00013972,2]
[395055708,1764382243309,-845.86,0.00013972,2]
[395055711,1764382243320,-500.0,0.00013972,2]
[395055714,1764382243329,-500.0,0.00013972,2]
[395055717,1764382243338,-500.0,0.00013972,2]
[395055720,1764382243347,-500.0,0.00013972,2]
[395055723,1764382243356,-500.0,0.00013972,2]
[395055725,1764382243365,-500.0,0.00013972,2]
[395055728,1764382243375,-500.0,0.00013972,2]
[395055730,1764382243384,-743.28,0.00013972,2]
[395055732,1764382243393,-500.0,0.00013972,2]
[395055734,1764382243402,-500.0,0.00013972,2]
[395055736,1764382243412,-658.87,0.00013972,2]
[395055738,1764382243422,-500.0,0.00013972,2]
[395055740,1764382243431,-500.0,0.00013972,2]
[395055742,1764382243440,-500.0,0.00013972,2]
[395055744,1764382243449,-500.0,0.00013972,2]
[395055746,1764382243458,-500.0,0.00013972,2]
[395055748,1764382243467,-500.0,0.00013972,2]
[395055750,1764382243477,-500.0,0.00013972,2]
[395055752,1764382243486,-500.0,0.00013972,2]
[395055754,1764382243494,-500.0,0.00013972,2]
[395055756,1764382243504,-500.0,0.00013972,2]
[395055758,1764382243512,-500.0,0.00013972,2]
[395055760,1764382243522,-1153.86,0.00013972,2]
[395055762,1764382243531,-539.21,0.00013972,2]
[395055764,1764382243540,-1127.96,0.00013972,2]
[395055766,1764382243549,-542.12,0.00013972,2]
[395055768,1764382243558,-1304.85,0.00013972,2]
[395055770,1764382243567,-500.0,0.00013972,2]
[395055772,1764382243576,-1970.85,0.00013972,2]
[395055774,1764382243584,-500.0,0.00013972,2]
[395055775,1764382243593,-858.48,0.00013972,2]
[395055777,1764382243602,-776.29,0.00013972,2]
[395055779,1764382243611,-500.0,0.00013972,2]
[395055781,1764382243620,-500.0,0.00013972,2]
[395055783,1764382243629,-500.0,0.00013972,2]
[395055785,1764382243639,-1621.14,0.00013972,2]
[395055787,1764382243648,-760.58,0.00013972,2]
[395055789,1764382243657,-500.0,0.00013972,2]
[395055791,1764382243666,-512.27,0.00013972,2]
[395055793,1764382243676,-752.8,0.00013972,2]
[395055795,1764382243685,-751.45,0.00013972,2]
[395055797,1764382243694,-500.0,0.00013972,2]
[395055799,1764382243703,-1338.21,0.00013972,2]
[395055801,1764382243713,-1353.88,0.00013972,2]
[395055803,1764382243722,-547.34,0.00013972,2]
[395055805,1764382243731,-500.0,0.00013972,2]
[395055807,1764382243741,-559.94,0.00013972,2]
[395055809,1764382243752,-878.46,0.00013972,2]
[395055811,1764382243763,-992.52,0.00013972,2]
[395055813,1764382243772,-1051.53,0.00013972,2]
[395055816,1764382243782,-500.0,0.00013972,2]
[395055819,1764382243792,-1215.03,0.00013972,2]
[395055822,1764382243801,-500.0,0.00013972,2]
[395055824,1764382243812,-500.0,0.00013972,2]
[395055826,1764382243823,-500.0,0.00013972,2]
[395055828,1764382243832,-778.72,0.00013972,2]
[395055829,1764382243841,-2022.05,0.00013972,2]
[395055831,1764382243850,-500.0,0.00013972,2]
[395055833,1764382243861,-500.0,0.00013972,2]
[395055835,1764382243871,-1949.44,0.00013972,2]
[395055837,1764382243881,-552.25,0.00013972,2]
[395055839,1764382243893,-500.0,0.00013972,2]
[395055841,1764382243905,-500.0,0.00013972,2]
[395055843,1764382243915,-806.1,0.00013972,2]
[395055845,1764382243924,-1677.31,0.00013972,2]
[395055847,1764382243934,-3792.95,0.00013972,2]
[395055849,1764382243943,-500.0,0.00013972,2]
[395055851,1764382243952,-512.74,0.00013972,2]
[395055853,1764382243967,-1780.64,0.00013972,2]
[395055855,1764382243977,-500.0,0.00013972,2]
[395055857,1764382243987,-500.0,0.00013972,2]
[395055859,1764382243996,-500.0,0.00013972,2]
[395055861,1764382244005,-500.0,0.00013972,2]
[395055863,1764382244015,-500.0,0.00013972,2]
[395055865,1764382244024,-500.0,0.00013972,2]
[395055867,1764382244033,-500.0,0.00013972,2]
[395055868,1764382244042,-533.74,0.00013972,2]
[395055870,1764382244051,-553.69,0.00013972,2]
[395055872,1764382244060,-852.95,0.00013972,2]
[395055874,1764382244070,-500.0,0.00013972,2]
[395055876,1764382244079,-500.0,0.00013972,2]
[395055878,1764382244088,-500.0,0.00013972,2]
[395055880,1764382244097,-500.0,0.00013972,2]
[395055882,1764382244106,-500.0,0.00013972,2]
[395055884,1764382244116,-1863.37,0.00013972,2]
[395055886,1764382244125,-500.0,0.00013972,2]
[395055888,1764382244134,-500.0,0.00013972,2]
[395055890,1764382244142,-573.33,0.00013972,2]
[395055892,1764382244151,-2732.13,0.00013972,2]
[395055894,1764382244160,-706.08,0.00013972,2]
[395055896,1764382244170,-695.37,0.00013972,2]
[395055898,1764382244179,-994.77,0.00013972,2]
[395055900,1764382244189,-500.0,0.00013972,2]
[395055902,1764382244198,-711.35,0.00013972,2]
[395055903,1764382244208,-500.0,0.00013972,2]
[395055905,1764382244217,-500.0,0.00013972,2]
[395055907,1764382244227,-1668.18,0.00013972,2]
[395055909,1764382244237,-500.0,0.00013972,2]
[395055911,1764382244246,-500.0,0.00013972,2]
[395055912,1764382244256,-1381.16,0.00013972,2]
[395055913,1764382244265,-500.0,0.00013972,2]
[395055915,1764382244275,-500.0,0.00013972,2]
[395055917,1764382244284,-1118.28,0.00013972,2]
[395055918,1764382244293,-2148.12,0.00013972,2]
[395055920,1764382244303,-2572.8,0.00013972,2]
[395055921,1764382244313,-500.0,0.00013972,2]
[395055922,1764382244322,-763.4,0.00013972,2]
[395055923,1764382244331,-2046.08,0.00013972,2]
[395055924,1764382244340,-500.0,0.00013972,2]
[395055925,1764382244350,-556.43,0.00013972,2]
[395055926,1764382244359,-500.0,0.00013972,2]
[395055927,1764382244368,-500.0,0.00013972,2]
[395055928,1764382244378,-500.0,0.00013972,2]
[395055929,1764382244387,-500.0,0.00013972,2]
[395055930,1764382244397,-1305.99,0.00013972,2]
[395055931,1764382244408,-500.0,0.00013972,2]
[395055932,1764382244417,-626.66163828,0.00013972,2]
[395055933,1764382244426,-500.0,0.00013972,2]
[395055934,1764382244435,-500.0,0.00013972,2]
[395055935,1764382244444,-500.0,0.00013972,2]
[395055936,1764382244454,-500.0,0.00013972,2]
[395055937,1764382244463,-500.0,0.00013972,2]
[395055938,1764382244474,-2292.09,0.00013972,2]
[395055939,1764382244488,-610.79,0.00013972,2]
[395055940,1764382244506,-500.0,0.00013972,2]
[395055941,1764382244515,-231.2388749,0.00013972,2]
[395055942,1764382244525,-616.65914695,0.00013972,2]
[395055943,1764382244535,-500.0,0.00013972,2]
[395055944,1764382244544,-909.21,0.00013972,2]
[395055945,1764382244553,-1567.93,0.00013972,2]
[395055946,1764382244562,-500.0,0.00013972,2]
[395055947,1764382244574,-548.63,0.00013972,2]
[395055948,1764382244583,-580.37,0.00013972,2]
[395055949,1764382244593,-4152.18,0.00013972,2]
[395055950,1764382244602,-1107.03,0.00013972,2]
[395055951,1764382244611,-500.0,0.00013972,2]
[395055952,1764382244621,-635.13,0.00013972,2]
[395055953,1764382244631,-537.9,0.00013972,2]
[395055954,1764382244641,-500.0,0.00013972,2]
[395055955,1764382244650,-500.0,0.00013972,2]
[395055956,1764382244660,-1336.22,0.00013972,2]
[395055957,1764382244669,-500.0,0.00013972,2]
[395055958,1764382244678,-4264.56,0.00013972,2]
[395055959,1764382244875,-8996.15,0.00013972,2]
[395055960,1764382244885,-265.90286232,0.00013972,2]
[395055961,1764382244895,-500.0,0.00013972,2]
[395055962,1764382244905,-500.0,0.00013972,2]
[395055963,1764382244914,-500.0,0.00013972,2]
[395055964,1764382244924,-500.0,0.00013972,2]
[395055965,1764382244934,-523.14332199,0.00013972,2]
[395055966,1764382244943,-1167.58,0.00013972,2]
[395055967,1764382244952,-500.0,0.00013972,2]
[395055968,1764382244962,-500.0,0.00013972,2]
[395055969,1764382244971,-500.0,0.00013972,2]
[395055970,1764382244980,-500.0,0.00013972,2]
[395055971,1764382244989,-1129.73,0.00013972,2]
[395055972,1764382244999,-500.0,0.00013972,2]
[395055973,1764382245008,-500.0,0.00013972,2]
[395055974,1764382245018,-1222.9,0.00013972,2]
[395055975,1764382245027,-500.0,0.00013972,2]
[395055976,1764382245037,-1317.87,0.00013972,2]
[395055977,1764382245047,-588.67,0.00013972,2]
[395055978,1764382245056,-1247.35,0.00013972,2]
[395055979,1764382245065,-500.29048527,0.00013972,2]
[395055980,1764382245074,-505.60903494,0.00013972,2]
[395055981,1764382245083,-500.0,0.00013973,2]
[395055982,1764382245093,-500.0,0.00013973,2]
[395055983,1764382245103,-500.0,0.00013973,2]
[395055984,1764382245112,-500.0,0.00013973,2]
[395055985,1764382245122,-500.0,0.00013973,2]
[395055986,1764382245130,-400.08439822,0.00013973,2]
[395055987,1764382245140,-500.0,0.00013973,2]
[395055988,1764382245149,-300.0,0.00013973,2]
[395055989,1764382245158,-500.0,0.00013973,2]
[395055990,1764382245168,-500.0,0.00013973,2]
[395055991,1764382245178,-500.0,0.00013973,2]
[395055992,1764382245187,-500.0,0.00013973,2]
[395055993,1764382245196,-1000.0,0.00014221,2]
[395055994,1764382245206,-201.93286099,0.00014238,2]
[395055995,1764382245215,-500.0,0.00014246,2]
[395055996,1764382245225,-544.2,0.00014246,2]
[395055997,1764382245235,-500.0,0.00014246,2]
[395055998,1764382245244,-500.0,0.00014246,2]
[395055999,1764382245253,-500.0,0.00014246,2]
[395056000,1764382245262,-552.79,0.00014246,2]
[395056001,1764382245271,-500.0,0.00014246,2]
[395056002,1764382245280,-500.0,0.00014246,2]
[395056003,1764382245291,-500.0,0.00014246,2]
[395056004,1764382245300,-500.0,0.00014246,2]
[395056005,1764382245310,-500.0,0.00014246,2]
[395056006,1764382245319,-500.0,0.00014246,2]
[395056007,1764382245328,-500.0,0.00014246,2]
[395056008,1764382245338,-500.0,0.00014246,2]
[395056009,1764382245348,-500.0,0.00014246,2]
[395056010,1764382245357,-533.59100183,0.00014246,2]
[395056011,1764382245367,-500.0,0.00014246,2]
[395056012,1764382245377,-500.0,0.00014246,2]
[395056013,1764382245387,-500.0,0.00014246,2]
[395056014,1764382245396,-199.3178874,0.00014246,2]
[395056015,1764382245406,-500.0,0.00014246,2]
[395056016,1764382245415,-500.0,0.00014246,2]
[395056017,1764382245425,-500.0,0.00014246,2]
[395056018,1764382245434,-500.0,0.00014246,2]
[395056019,1764382245443,-500.0,0.00014246,2]
[395056020,1764382245453,-500.0,0.00014246,2]
[395056021,1764382245462,-500.0,0.00014246,2]
[395056022,1764382245471,-500.0,0.00014246,2]
[395056023,1764382245480,-500.0,0.00014246,2]
[395056024,1764382245490,-500.0,0.00014246,2]
[395056025,1764382245499,-870.66,0.00014246,2]
[395056026,1764382245508,-500.0,0.00014246,2]
[395056027,1764382245518,-500.0,0.00014246,2]
[395056028,1764382245527,-500.0,0.00014246,2]
[395056030,1764382245537,-500.0,0.00014246,2]
[395056031,1764382245546,-500.0,0.00014246,2]
[395056032,1764382245556,-500.0,0.00014246,2]
[395056033,1764382245565,-508.16,0.00014246,2]
[395056034,1764382245574,-500.0,0.00014246,2]
[395056035,1764382245584,-500.0,0.00014246,2]
[395056036,1764382245593,-1700.67,0.00014246,2]
[395056037,1764382245603,-500.0,0.00014246,2]
[395056038,1764382245612,-500.0,0.00014246,2]
[395056039,1764382245621,-500.0,0.00014246,2]
[395056040,1764382245631,-500.0,0.00014246,2]
[395056041,1764382245640,-500.0,0.00014246,2]
[395056042,1764382245650,-500.0,0.00014246,2]
[395056043,1764382245659,-1103.23,0.00014246,2]
[395056044,1764382245669,-1300.89,0.00014246,2]
[395056045,1764382245678,-500.0,0.00014246,2]
[395056046,1764382245688,-500.0,0.00014246,2]
[395056047,1764382245698,-500.0,0.00014246,2]
[395056048,1764382245708,-500.0,0.00014246,2]
[395056049,1764382245718,-801.57,0.00014246,2]
[395056050,1764382245728,-500.0,0.00014246,2]
[395056051,1764382245737,-500.0,0.00014246,2]
[395056052,1764382245747,-500.0,0.00014246,2]
[395056053,1764382245757,-500.0,0.00014246,2]
[395056054,1764382245767,-500.0,0.00014246,2]
[395056055,1764382245777,-1101.92,0.00014246,2]
[395056056,1764382245786,-500.0,0.00014246,2]
[395056057,1764382245796,-500.0,0.00014246,2]
[395056058,1764382245806,-500.0,0.00014246,2]
[395056059,1764382245820,-995.32,0.00014246,2]
[395056060,1764382245830,-500.0,0.00014246,2]
[395056061,1764382245839,-500.0,0.00014246,2]
[395056062,1764382245849,-500.0,0.00014246,2]
[395056063,1764382245859,-500.0,0.00014246,2]
[395056064,1764382245869,-500.0,0.00014246,2]
[395056065,1764382245878,-596.27,0.00014246,2]
[395056066,1764382245891,-592.82,0.00014246,2]
[395056067,1764382245900,-500.0,0.00014246,2]
[395056068,1764382245910,-500.0,0.00014246,2]
[395056069,1764382245920,-506.57,0.00014246,2]
[395056070,1764382245929,-500.0,0.00014246,2]
[395056071,1764382245939,-500.0,0.00014246,2]
[395056072,1764382245950,-500.0,0.00014246,2]
[395056073,1764382245960,-1062.63,0.00014246,2]
[395056074,1764382245969,-500.0,0.00014246,2]
[395056075,1764382245979,-500.0,0.00014246,2]
[395056076,1764382245988,-500.0,0.00014246,2]
[395056077,1764382245998,-500.0,0.00014246,2]
[395056078,1764382246008,-500.0,0.00014246,2]
[395056079,1764382246017,-500.0,0.00014246,2]
[395056080,1764382246027,-500.0,0.00014246,2]
[395056081,1764382246036,-628.42,0.00014246,2]
[395056082,1764382246045,-500.0,0.00014246,2]
[395056083,1764382246055,-500.0,0.00014246,2]
[395056084,1764382246064,-502.1,0.00014246,2]
[395056085,1764382246074,-500.0,0.00014246,2]
[395056086,1764382246083,-500.0,0.00014246,2]
[395056087,1764382246093,-907.37,0.00014246,2]
[395056088,1764382246103,-500.0,0.00014246,2]
[395056089,1764382246113,-845.86,0.00014246,2]
[395056090,1764382246122,-500.0,0.00014246,2]
[395056091,1764382246131,-500.0,0.00014246,2]
[395056092,1764382246140,-500.0,0.00014246,2]
[395056093,1764382246151,-631.76819583,0.00014246,2]
[395056094,1764382246165,-500.0,0.00014246,2]
[395056095,1764382246174,-500.0,0.00014246,2]
[395056096,1764382246183,-743.28,0.00014246,2]
[395056097,1764382246193,-500.0,0.00014246,2]
[395056098,1764382246203,-241.80697121,0.00014246,2]
[395056099,1764382246212,-500.0,0.00014246,2]
[395056100,1764382246222,-658.87,0.00014246,2]
[395056101,1764382246231,-500.0,0.00014246,2]
[395056102,1764382246240,-500.0,0.00014246,2]
[395056103,1764382246250,-500.0,0.00014246,2]
[395056104,1764382246259,-500.0,0.00014246,2]
[395056105,1764382246269,-500.0,0.00014246,2]
[395056106,1764382246278,-500.0,0.00014246,2]
[395056107,1764382246288,-500.0,0.00014246,2]
[395056108,1764382246297,-500.0,0.00014246,2]
[395056109,1764382246307,-500.0,0.00014246,2]
[395056110,1764382246316,-500.0,0.00014246,2]
[395056111,1764382246326,-500.0,0.00014246,2]
[395056112,1764382246336,-1153.86,0.00014246,2]
[395056113,1764382246345,-539.21,0.00014246,2]
[395056114,1764382246355,-1127.96,0.00014246,2]
[395056115,1764382246364,-542.12,0.00014246,2]
[395056116,1764382246373,-1304.85,0.00014246,2]
[395056117,1764382246382,-500.0,0.00014246,2]
[395056118,1764382246392,-1970.85,0.00014246,2]
[395056119,1764382246402,-500.0,0.00014246,2]
[395056120,1764382246411,-858.48,0.00014246,2]
[395056121,1764382246420,-776.29,0.00014246,2]
[395056122,1764382246430,-500.0,0.00014246,2]
[395056123,1764382246440,-500.0,0.00014246,2]
[395056124,1764382246450,-500.0,0.00014246,2]
[395056125,1764382246459,-1621.14,0.00014246,2]
[395056126,1764382246469,-760.58,0.00014246,2]
[395056127,1764382246478,-500.0,0.00014246,2]
[395056128,1764382246487,-512.27,0.00014246,2]
[395056129,1764382246497,-752.8,0.00014246,2]
[395056130,1764382246507,-751.45,0.00014246,2]
[395056131,1764382246516,-500.0,0.00014246,2]
[395056132,1764382246526,-1338.21,0.00014246,2]
[395056133,1764382246536,-1353.88,0.00014246,2]
[395056134,1764382246545,-547.34,0.00014246,2]
[395056135,1764382246554,-500.0,0.00014246,2]
[395056136,1764382246564,-559.94,0.00014246,2]
[395056137,1764382246573,-878.46,0.00014246,2]
[395056138,1764382246582,-992.52,0.00014246,2]
[395056139,1764382246595,-1051.53,0.00014246,2]
[395056140,1764382246604,-500.0,0.00014246,2]
[395056141,1764382246614,-1215.03,0.00014246,2]
[395056142,1764382246623,-500.0,0.00014246,2]
[395056143,1764382246632,-500.0,0.00014246,2]
[395056144,1764382246642,-500.0,0.00014246,2]
[395056145,1764382246651,-778.72,0.00014246,2]
[395056146,1764382246661,-2022.05,0.00014246,2]
[395056147,1764382246670,-500.0,0.00014246,2]
[395056148,1764382246679,-500.0,0.00014246,2]
[395056149,1764382246689,-1949.44,0.00014246,2]
[395056150,1764382246698,-552.25,0.00014246,2]
[395056151,1764382246708,-500.0,0.00014246,2]
[395056152,1764382246718,-500.0,0.00014246,2]
[395056153,1764382246728,-806.1,0.00014246,2]
[395056154,1764382246737,-1677.31,0.00014246,2]
[395056155,1764382246747,-3792.95,0.00014246,2]
[395056156,1764382246757,-500.0,0.00014246,2]
[395056157,1764382246766,-512.74,0.00014246,2]
[395056158,1764382246776,-1780.64,0.00014246,2]
[395056160,1764382246785,-500.0,0.00014246,2]
[395056161,1764382246795,-500.0,0.00014246,2]
[395056162,1764382246804,-500.0,0.00014246,2]
[395056163,1764382246817,-500.0,0.00014246,2]
[395056164,1764382246826,-500.0,0.00014246,2]
[395056165,1764382246836,-500.0,0.00014246,2]
[395056166,1764382246845,-500.0,0.00014246,2]
[395056168,1764382246855,-533.74,0.00014246,2]
[395056169,1764382246864,-553.69,0.00014246,2]
[395056170,1764382246873,-852.95,0.00014246,2]
[395056171,1764382246883,-523.17277715,0.00014246,2]
[395056172,1764382246893,-500.0,0.00014246,2]
[395056173,1764382246903,-500.0,0.00014246,2]
[395056174,1764382246912,-500.0,0.00014246,2]
[395056175,1764382246922,-500.0,0.00014246,2]
[395056176,1764382246931,-1863.37,0.00014246,2]
[395056177,1764382246940,-500.0,0.00014246,2]
[395056178,1764382246949,-500.0,0.00014246,2]
[395056179,1764382246959,-573.33,0.00014246,2]
[395056180,1764382246968,-2732.13,0.00014246,2]
[395056181,1764382246978,-706.08,0.00014246,2]
[395056182,1764382246987,-695.37,0.00014246,2]
[395056183,1764382246996,-994.77,0.00014246,2]
[395056184,1764382247005,-500.0,0.00014246,2]
[395056185,1764382247014,-711.35,0.00014246,2]
[395056186,1764382247023,-500.0,0.00014246,2]
[395056187,1764382247033,-500.0,0.00014246,2]
[395056188,1764382247042,-1668.18,0.00014246,2]
[395056189,1764382247051,-500.0,0.00014246,2]
[395056190,1764382247061,-500.0,0.00014246,2]
[395056191,1764382247070,-1381.16,0.00014246,2]
[395056192,1764382247079,-500.0,0.00014246,2]
[395056193,1764382247088,-500.0,0.00014246,2]
[395056194,1764382247099,-1118.28,0.00014246,2]
[395056195,1764382247108,-2148.12,0.00014246,2]
[395056196,1764382247117,-2572.8,0.00014246,2]
[395056197,1764382247126,-490.45935297,0.00014246,2]
[395056198,1764382247135,-763.4,0.00014246,2]
[395056199,1764382247144,-2046.08,0.00014246,2]